fUST/lending_fUST_20260127
["ID","MTS","AMOUNT","RATE_DAILY","PERIOD"]
[403745571,1769521844429,-1004.79261489,0.00014368,2]
[403745572,1769521844438,-1500.0,0.00014368,2]
[403745573,1769521844447,-1500.0,0.00014368,2]
[403745574,1769521844456,-500.0,0.00014438,2]
[403745575,1769521844465,-500.0,0.00014438,2]
[403745576,1769521844474,-500.0,0.00014438,2]
[403745577,1769521844483,-354.17373629,0.00014546,2]
[403745579,1769521844492,-500.0,0.00014575,2]
[403745580,1769521844501,-500.0,0.00014575,2]
[403745581,1769521844510,-500.0,0.00014575,2]
[403745582,1769521844519,-446.83193485,0.00014627,2]
[403745583,1769521844528,-500.0,0.00014712,2]
[403745584,1769521844537,-500.0,0.00014712,2]
[403745586,1769521844548,-500.0,0.00014712,2]
[403745587,1769521844557,-900.0,0.00014768,2]
[403745588,1769521844566,-1500.0,0.00014795,2]
[403745589,1769521844575,-175.70742984,0.00014795,2]
[403745590,1769521844584,-933.66109963,0.00014795,2]
[403745591,1769521844593,-476.55877196,0.00014795,2]
[403745592,1769521844602,-1500.0,0.00014795,2]
[403745594,1769521844611,-1500.0,0.00014795,2]
[403745595,1769521844620,-484.5242166,0.00014795,2]
[403745596,1769521844629,-1500.0,0.00014795,2]
[403745597,1769521844638,-301.56130493,0.00014795,2]
[403745598,1769521844647,-1532.3582484,0.00014795,2]
[403745599,1769521844656,-336.4468968,0.00014795,2]
[403745600,1769521844665,-1500.0,0.00014795,2]
[403745602,1769521844675,-1508.31156326,0.00014795,2]
[403745603,1769521844685,-944.83278886,0.00014795,2]
[403745604,1769521844696,-1500.0,0.00014795,2]
[403745605,1769521844705,-1500.0,0.00014795,2]
[403745606,1769521844714,-1500.0,0.00014795,2]
[403745607,1769521844723,-500.0,0.00014849,2]
[403745609,1769521844734,-500.0,0.00014849,2]
[403745610,1769521844743,-2000.0,0.00014916,2]
[403745611,1769521844752,-2000.0,0.00014916,2]
[403745612,1769521844762,-2000.0,0.00014916,2]
[403745613,1769521844771,-2000.0,0.00014916,2]
[403745614,1769521844780,-2000.0,0.00014916,2]
[403745615,1769521844789,-2000.0,0.00014916,2]
[403745617,1769521844798,-2000.0,0.00014916,2]
[403745618,1769521844808,-333.60544809,0.00014916,2]
[403745619,1769521844817,-2000.0,0.00014916,2]
[403745620,1769521844827,-2000.0,0.00014916,2]
[403745621,1769521844839,-2000.0,0.00014916,2]
[403745623,1769521844848,-2000.0,0.00014916,2]
[403745626,1769521844862,-500.0,0.00014986,2]
[403745628,1769521844871,-605.45611552,0.00014986,2]
[403745629,1769521844880,-280.650678,0.00015068,2]
[403745630,1769521844889,-587.0,0.00015082,2]
[403745631,1769521844898,-500.0,0.00015123,2]
[403745632,1769521844907,-1407.0,0.00015159,2]
[403745633,1769521844915,-356.10404976,0.0001526,2]
[403745635,1769521844925,-1200.0,0.00015316,2]
[403745637,1769521844934,-2194.25,0.00015342,2]
[403745639,1769521844943,-2000.0,0.00015342,2]
[403745641,1769521844953,-2000.0,0.00015342,2]
[403745643,1769521844962,-500.0,0.00015342,2]
[403745645,1769521844972,-2000.0,0.00015342,2]
[403745647,1769521844981,-1886.16038037,0.00015342,2]
[403745649,1769521844990,-2000.0,0.00015342,2]
[403745651,1769521844999,-2000.0,0.00015342,2]
[403745653,1769521845008,-2000.0,0.00015342,2]
[403745655,1769521845017,-2500.0,0.00015464,2]
[403745658,1769521845027,-2500.0,0.00015464,2]
[403745661,1769521845036,-2500.0,0.00015464,2]
[403745662,1769521845047,-2500.0,0.00015464,2]
[403745664,1769521845056,-2500.0,0.00015464,2]
[403745665,1769521845065,-2500.0,0.00015464,2]
[403745666,1769521845075,-2500.0,0.00015464,2]
[403745667,1769521845085,-2500.0,0.00015464,2]
[403745668,1769521845095,-1448.22561692,0.00015464,2]
[403745670,1769521845105,-2500.0,0.00015464,2]
[403745671,1769521845114,-2500.0,0.00015464,2]
[403745673,1769521845123,-1320.32,0.00015559,2]
[403745674,1769521845133,-1957.856,0.0001557,2]
[403745675,1769521845143,-160.0,0.0001557,2]
[403745676,1769521845152,-160.0,0.0001557,2]
[403745677,1769521845162,-160.0,0.0001557,2]
[403745678,1769521845172,-500.0,0.0001557,2]
[403745679,1769521845181,-395.72,0.0001557,2]
[403745681,1769521845191,-201.93286099,0.0001557,2]
[403745682,1769521845200,-209.40437684,0.0001557,2]
[403745683,1769521845210,-668.65185757,0.0001557,2]
[403745684,1769521845220,-217.15233878,0.0001557,2]
[403745685,1769521845230,-225.18697532,0.0001557,2]
[403745686,1769521845239,-2674.60743027,0.0001557,2]
[403745688,1769521845248,-30000.0,0.0001557,2]
[403745689,1769521845257,-233.51889341,0.0001557,2]
[403745690,1769521845266,-242.15909246,0.0001557,2]
[403745691,1769521845276,-251.11897888,0.0001557,2]
[403745692,1769521845285,-260.4103811,0.0001557,2]
[403745693,1769521845294,-270.0455652,0.0001557,2]
[403745694,1769521845303,-280.03725112,0.0001557,2]
[403745696,1769521845312,-151.0,0.0001557,2]
[403745697,1769521845321,-278.15468107,0.0001557,2]
[403745698,1769521845330,-290.39862941,0.0001557,2]
[403745699,1769521845339,-250.0,0.0001557,2]
[403745700,1769521845348,-151.0,0.0001557,2]
[403745701,1769521845357,-301.1433787,0.0001557,2]
[403745702,1769521845366,-151.0,0.0001557,2]
[403745704,1769521845375,-250.0,0.0001557,2]
[403745705,1769521845384,-250.0,0.0001557,2]
[403745706,1769521845393,-151.0,0.0001557,2]
[403745707,1769521845403,-250.0,0.0001557,2]
[403745708,1769521845412,-151.0,0.0001557,2]
[403745709,1769521845421,-250.0,0.0001557,2]
[403745710,1769521845431,-151.0,0.0001557,2]
[403745712,1769521845440,-324.25448447,0.0001557,2]
[403745713,1769521845450,-151.0,0.0001557,2]
[403745714,1769521845459,-151.0,0.0001557,2]
[403745715,1769521845468,-151.0,0.0001557,2]
[403745716,1769521845478,-151.0,0.0001557,2]
[403745717,1769521845487,-151.0,0.0001557,2]
[403745718,1769521845496,-151.0,0.0001557,2]
[403745720,1769521845505,-151.0,0.0001557,2]
[403745721,1769521845513,-151.0,0.0001557,2]
[403745722,1769521845523,-151.0,0.0001557,2]
[403745723,1769521845532,-151.0,0.0001557,2]
[403745724,1769521845541,-206.80518095,0.0001557,2]
[403745725,1769521845550,-151.0,0.0001557,2]
[403745726,1769521845559,-151.0,0.0001557,2]
[403745727,1769521845568,-164.81135061,0.0001557,2]
[403745729,1769521845577,-162.380719,0.0001557,2]
[403745730,1769521845587,-2030.296672,0.00015625,2]
[403745731,1769521845596,-179.9820018,0.00015675,2]
[403745732,1769521845605,-864.0,0.00015792,2]
[403745733,1769521845616,-1500.0,0.00015864,2]
[403745734,1769521845625,-2500.0,0.0001589,2]
[403745736,1769521845634,-2500.0,0.0001589,2]
[403745737,1769521845643,-2500.0,0.0001589,2]
[403745738,1769521845652,-2500.0,0.0001589,2]
[403745739,1769521845662,-538.71956343,0.0001589,2]
[403745740,1769521845671,-2500.0,0.0001589,2]
[403745741,1769521845680,-10647.92546678,0.00015912,2]
[403745742,1769521845694,-151.0,0.00016012,2]
[403745744,1769521845703,-151.0,0.00016012,2]
[403745745,1769521845712,-174.357781,0.00016012,2]
[403745746,1769521845721,-3000.0,0.00016012,2]
[403745747,1769521845731,-3000.0,0.00016012,2]
[403745748,1769521845740,-117018.315191,0.00016012,7]
[403745749,1769521845749,-324.123398,0.00016012,7]
[403745750,1769521845760,-2160.41327999,0.00016012,2]
[403745752,1769521845769,-3000.0,0.00016012,2]
[403745753,1769521845778,-3000.0,0.00016012,2]
[403745754,1769521845788,-3000.0,0.00016012,2]
[403745755,1769521845798,-3000.0,0.00016012,2]
[403745756,1769521845808,-3000.0,0.00016012,2]
[403745757,1769521845817,-3000.0,0.00016012,2]
[403745758,1769521845826,-3000.0,0.00016012,2]
[403745760,1769521845835,-636.24196,0.00016118,7]
[403745761,1769521845844,-5250.006381,0.00016118,7]
[403745762,1769521845853,-693.3919763,0.00016118,2]
[403745763,1769521845863,-2773.56790519,0.00016118,2]
[403745764,1769521845873,-31110.0,0.00016118,2]
[403745765,1769521845882,-716.06,0.00016134,2]
[403745767,1769521845891,-740.435472,0.00016134,7]
[403745768,1769521845901,-1799.623202,0.00016269,7]
[403745769,1769521845909,-1800.0,0.00016412,2]
[403745770,1769521845919,-200.0,0.00016438,2]
[403745771,1769521845928,-151.0,0.00016438,2]
[403745772,1769521845937,-1227.72467895,0.00016438,2]
[403745773,1769521845947,-1722.66874227,0.00016438,2]
[403745775,1769521845956,-3000.0,0.00016438,2]
[403745776,1769521845965,-1500.0,0.00016438,2]
[403745777,1769521845975,-2500.0,0.00016438,2]
[403745778,1769521845985,-200.07068234,0.00016473,2]
[403745779,1769521845994,-823.0,0.00016547,2]
[403745780,1769521846005,-250.0,0.00016554,2]
[403745781,1769521846014,-3000.0,0.0001656,2]
[403745783,1769521846023,-212.6308883,0.0001656,2]
[403745784,1769521846033,-2951.8102882,0.0001656,2]
[403745785,1769521846043,-1056.86628974,0.0001656,2]
[403745786,1769521846053,-3500.0,0.0001656,2]
[403745787,1769521846063,-3500.0,0.0001656,2]
[403745788,1769521846073,-3500.0,0.0001656,2]
[403745789,1769521846084,-3500.0,0.0001656,2]
[403745791,1769521846093,-514.99273847,0.00016627,2]
[403745792,1769521846103,-271.64951236,0.00016666,2]
[403745793,1769521846113,-2876.18991768,0.00016666,2]
[403745795,1769521846122,-9836.22573926,0.00016666,2]
[403745796,1769521846132,-151.0,0.00016666,2]
[403745797,1769521846141,-151.0,0.00016666,2]
[403745798,1769521846150,-157.40759664,0.00016806,2]
[403745800,1769521846159,-1432.12,0.00016902,2]
[403745801,1769521846168,-2100.0,0.0001696,2]
[403745802,1769521846178,-2115.71955138,0.00016986,2]
[403745803,1769521846187,-1500.0,0.00017108,2]
[403745804,1769521846197,-1500.0,0.00017108,2]
[403745805,1769521846206,-1328.85776734,0.00017108,2]
[403745806,1769521846215,-500.0,0.00017108,2]
[403745808,1769521846225,-2982.60894464,0.00017214,2]
[403745809,1769521846234,-1084.87424796,0.00017278,2]
[403745810,1769521846243,-33433.80434,0.00017293,7]
[403745811,1769521846252,-1000.0,0.00017371,2]
[403745812,1769521846262,-1680.957482,0.00017393,7]
[403745813,1769521846271,-181.783417,0.00017407,7]
[403745815,1769521846281,-1500.001823,0.00017407,7]
[403745816,1769521846292,-211.552992,0.00017425,7]
[403745817,1769521846301,-618.12397634,0.00017508,2]
[403745818,1769521846311,-514.178057,0.00017571,7]
[403745819,1769521846320,-2148.18,0.00017671,2]
[403745820,1769521846329,-229.43752364,0.00017863,2]
[403745821,1769521846338,-7404.354717,0.00017874,7]
[403745823,1769521846347,-10647.92546669,0.00018022,2]
[403745824,1769521846356,-1152.0,0.00018156,2]
[403745825,1769521846365,-729.0,0.000184,2]
[403745826,1769521846374,-729.0,0.000184,2]
[403745827,1769521846384,-2864.24,0.00018439,2]
[403745828,1769521846392,-17287.940618,0.00018471,7]
[403745829,1769521846402,-280.650678,0.00018493,2]
[403745831,1769521846411,-2120.806531,0.00018507,7]
[403745832,1769521846420,-1000.0,0.0001862,5]
[403745833,1769521846429,-583.15354209,0.00018627,2]
[403745834,1769521846437,-729.0,0.0001872,2]
[403745835,1769521846446,-729.0,0.0001872,2]
[403745836,1769521846455,-151.0,0.0001872,2]
[403745837,1769521846464,-480.273566,0.00018785,7]
[403745838,1769521846473,-303.10001603,0.000189,2]
[403745840,1769521846482,-729.0,0.0001904,2]
[403745841,1769521846491,-320.0,0.0001904,2]
[403745842,1769521846500,-729.0,0.0001904,2]
[403745843,1769521846509,-729.0,0.0001904,2]
[403745844,1769521846518,-729.0,0.0001904,2]
[403745845,1769521846526,-157.69654565,0.00019041,30]
[403745846,1769521846536,-303.10001603,0.00019089,2]
[403745848,1769521846546,-1000.0,0.00019108,2]
[403745849,1769521846555,-244.0,0.00019108,2]
[403745850,1769521846564,-200.0,0.00019177,2]
[403745851,1769521846573,-200.0,0.00019177,2]
[403745852,1769521846582,-507.9828,0.00019178,2]
[403745853,1769521846591,-507.9828,0.00019178,2]
[403745854,1769521846600,-200.0,0.00019178,2]
[403745856,1769521846609,-507.9828,0.00019178,2]
[403745857,1769521846619,-507.9828,0.00019178,2]
[403745858,1769521846627,-507.9828,0.00019178,2]
[403745859,1769521846637,-337.41,0.00019178,2]
[403745860,1769521846646,-151.0,0.00019178,2]
[403745861,1769521846655,-151.0,0.00019178,2]
[403745862,1769521846664,-507.97,0.00019178,2]
[403745864,1769521846673,-507.9828,0.00019178,2]
[403745865,1769521846682,-151.0,0.00019178,2]
[403745866,1769521846695,-151.33869,0.00019178,2]
[403745867,1769521846704,-151.0,0.00019178,2]
[403745868,1769521846712,-151.0,0.00019178,2]
[403745869,1769521846722,-151.0,0.00019178,2]
[403745870,1769521846732,-180.027684,0.00019178,2]
[403745872,1769521846742,-180.027684,0.00019178,2]
[403745873,1769521846751,-180.027684,0.00019178,2]
[403745874,1769521846762,-180.027684,0.00019178,2]
[403745875,1769521846771,-228.790219,0.00019178,2]
[403745876,1769521846780,-228.790219,0.00019178,2]
[403745877,1769521846789,-228.790219,0.00019178,2]
[403745878,1769521846798,-228.790219,0.00019178,2]
[403745880,1769521846807,-151.0,0.00019178,2]
[403745881,1769521846816,-151.0,0.00019178,2]
[403745882,1769521846826,-151.0,0.00019178,2]
[403745883,1769521846835,-194.873958,0.00019178,2]
[403745884,1769521846844,-151.306167,0.00019178,2]
[403745885,1769521846854,-151.0,0.00019178,2]
[403745886,1769521846864,-197.582947,0.00019178,2]
[403745888,1769521846875,-197.582947,0.00019178,2]
[403745889,1769521846885,-197.582947,0.00019178,2]
[403745890,1769521846895,-151.0,0.00019178,2]
[403745893,1769521847001,-151.0,0.00019178,2]
[403745894,1769521847022,-151.0,0.00019178,2]
[403745895,1769521847032,-249.905202,0.00019178,2]
[403745896,1769521847042,-249.905202,0.00019178,2]
[403745897,1769521847052,-3273.728464,0.00019178,2]
[403745898,1769521847061,-3273.728464,0.00019178,2]
[403745900,1769521847071,-249.905202,0.00019178,2]
[403745901,1769521847080,-249.905202,0.00019178,2]
[403745902,1769521847089,-3273.728464,0.00019178,2]
[403745903,1769521847099,-3273.728464,0.00019178,2]
[403745904,1769521847108,-249.905202,0.00019178,2]
[403745905,1769521847117,-249.905202,0.00019178,2]
[403745906,1769521847128,-3273.728464,0.00019178,2]
[403745908,1769521847137,-3273.728464,0.00019178,2]
[403745909,1769521847146,-249.905202,0.00019178,2]
[403745910,1769521847155,-249.905202,0.00019178,2]
[403745911,1769521847164,-3273.728464,0.00019178,2]
[403745912,1769521847173,-3273.728464,0.00019178,2]
[403745913,1769521847182,-209.561229,0.00019178,2]
[403745914,1769521847191,-209.561229,0.00019178,2]
[403745916,1769521847200,-209.561229,0.00019178,2]
[403745917,1769521847209,-209.561229,0.00019178,2]
[403745918,1769521847218,-1388.215631,0.00019178,2]
[403745919,1769521847227,-1388.215631,0.00019178,2]
[403745920,1769521847236,-209.561229,0.00019178,2]
[403745921,1769521847245,-209.561229,0.00019178,2]
[403745922,1769521847255,-1388.215631,0.00019178,2]
[403745924,1769521847264,-1388.215631,0.00019178,2]
[403745925,1769521847273,-209.561229,0.00019178,2]
[403745926,1769521847282,-1388.215631,0.00019178,2]
[403745927,1769521847291,-209.561229,0.00019178,2]
[403745928,1769521847300,-1388.215631,0.00019178,2]
[403745929,1769521847309,-1388.215631,0.00019178,2]
[403745930,1769521847317,-1388.215631,0.00019178,2]
[403745931,1769521847326,-151.0,0.00019178,2]
[403745933,1769521847335,-178.671989,0.00019178,2]
[403745934,1769521847344,-151.0,0.00019178,2]
[403745935,1769521847353,-151.0,0.00019178,2]
[403745936,1769521847363,-151.0,0.00019178,2]
[403745937,1769521847373,-151.0,0.00019178,2]
[403745938,1769521847382,-151.0,0.00019178,2]
[403745939,1769521847390,-151.0,0.00019178,2]
[403745941,1769521847399,-298.982035,0.00019178,2]
[403745942,1769521847409,-372.554078,0.00019178,2]
[403745943,1769521847419,-372.554078,0.00019178,2]
[403745944,1769521847431,-372.554078,0.00019178,2]
[403745945,1769521847440,-372.554078,0.00019178,2]
[403745946,1769521847449,-372.554078,0.00019178,2]
[403745948,1769521847459,-372.554078,0.00019178,2]
[403745949,1769521847467,-372.554078,0.00019178,2]
[403745950,1769521847476,-151.0,0.00019178,2]
[403745951,1769521847486,-372.554078,0.00019178,2]
[403745952,1769521847495,-151.0,0.00019178,2]
[403745953,1769521847505,-151.0,0.00019178,2]
[403745954,1769521847514,-151.0,0.00019178,2]
[403745956,1769521847523,-151.0,0.00019178,2]
[403745957,1769521847532,-151.0,0.00019178,2]
[403745958,1769521847541,-151.0,0.00019178,2]
[403745959,1769521847551,-151.0,0.00019178,2]
[403745960,1769521847561,-151.0,0.00019178,2]
[403745961,1769521847571,-151.0,0.00019178,2]
[403745962,1769521847582,-224.360219,0.00019178,2]
[403745964,1769521847591,-224.360219,0.00019178,2]
[403745965,1769521847600,-224.360219,0.00019178,2]
[403745966,1769521847609,-224.360219,0.00019178,2]
[403745967,1769521847618,-224.360219,0.00019178,2]
[403745968,1769521847627,-151.0,0.00019178,2]
[403745969,1769521847637,-224.360219,0.00019178,2]
[403745970,1769521847646,-276.802729,0.00019178,2]
[403745972,1769521847655,-224.360219,0.00019178,2]
[403745973,1769521847664,-224.360219,0.00019178,2]
[403745974,1769521847673,-257.35298,0.00019178,2]
[403745975,1769521847681,-1637.56697,0.00019178,2]
[403745976,1769521847693,-1637.56697,0.00019178,2]
[403745977,1769521847702,-1637.56697,0.00019178,2]
[403745978,1769521847711,-1637.56697,0.00019178,2]
[403745980,1769521847719,-1637.56697,0.00019178,2]
[403745981,1769521847729,-1637.56697,0.00019178,2]
[403745982,1769521847739,-1637.56697,0.00019178,2]
[403745983,1769521847747,-1637.56697,0.00019178,2]
[403745984,1769521847759,-151.0,0.00019178,2]
[403745985,1769521847768,-151.0,0.00019178,2]
[403745986,1769521847777,-231.52734,0.00019178,2]
[403745988,1769521847786,-1435.484562,0.00019178,2]
[403745989,1769521847795,-1435.484562,0.00019178,2]
[403745990,1769521847804,-151.0,0.00019178,2]
[403745991,1769521847815,-1435.484562,0.00019178,2]
[403745992,1769521847824,-1435.484562,0.00019178,2]
[403745993,1769521847832,-151.0,0.00019178,2]
[403745994,1769521847841,-151.0,0.00019178,2]
[403745996,1769521847851,-151.0,0.00019178,2]
[403745997,1769521847860,-151.0,0.00019178,2]
[403745998,1769521847868,-151.0,0.00019178,2]
[403745999,1769521847879,-259.504741,0.00019178,2]
[403746000,1769521847887,-259.504741,0.00019178,2]
[403746001,1769521847896,-1435.484562,0.00019178,2]
[403746002,1769521847905,-259.504741,0.00019178,2]
[403746004,1769521847914,-1435.484562,0.00019178,2]
[403746005,1769521847923,-259.504741,0.00019178,2]
[403746006,1769521847932,-1435.484562,0.00019178,2]
[403746007,1769521847941,-1435.484562,0.00019178,2]
[403746008,1769521847950,-259.504741,0.00019178,2]
[403746009,1769521847959,-259.504741,0.00019178,2]
[403746010,1769521847968,-259.504741,0.00019178,2]
[403746012,1769521847976,-151.0,0.00019178,2]
[403746013,1769521847986,-259.504741,0.00019178,2]
[403746014,1769521847995,-151.0,0.00019178,2]
[403746015,1769521848003,-522.123162,0.00019178,2]
[403746016,1769521848013,-522.123162,0.00019178,2]
[403746017,1769521848022,-522.123162,0.00019178,2]
[403746018,1769521848031,-522.123162,0.00019178,2]
[403746020,1769521848042,-522.123162,0.00019178,2]
[403746021,1769521848052,-522.123162,0.00019178,2]
[403746022,1769521848061,-522.123162,0.00019178,2]
[403746023,1769521848070,-522.123162,0.00019178,2]
[403746024,1769521848079,-288.307917,0.00019178,2]
[403746025,1769521848089,-288.307917,0.00019178,2]
[403746026,1769521848098,-288.307917,0.00019178,2]
[403746028,1769521848107,-288.307917,0.00019178,2]
[403746029,1769521848116,-288.307917,0.00019178,2]
[403746030,1769521848125,-288.307917,0.00019178,2]
[403746031,1769521848135,-288.307917,0.00019178,2]
[403746032,1769521848143,-288.307917,0.00019178,2]
[403746033,1769521848152,-151.0,0.00019178,2]
[403746034,1769521848161,-151.0,0.00019178,2]
[403746036,1769521848174,-151.0,0.00019178,2]
[403746037,1769521848188,-161.862077,0.00019178,2]
[403746038,1769521848201,-151.0,0.00019178,2]
[403746039,1769521848213,-151.0,0.00019178,2]
[403746040,1769521848224,-151.0,0.00019178,2]
[403746042,1769521848237,-151.0,0.00019178,2]
[403746043,1769521848250,-151.0,0.00019178,2]
[403746044,1769521848262,-151.0,0.00019178,2]
[403746045,1769521848274,-151.0,0.00019178,2]
[403746046,1769521848286,-151.0,0.00019178,2]
[403746047,1769521848300,-151.0,0.00019178,2]
[403746049,1769521848312,-151.0,0.00019178,2]
[403746050,1769521848325,-151.0,0.00019178,2]
[403746051,1769521848336,-151.0,0.00019178,2]
[403746052,1769521848348,-151.0,0.00019178,2]
[403746053,1769521848359,-151.0,0.00019178,2]
[403746055,1769521848370,-193.933533,0.00019178,2]
[403746056,1769521848382,-1775.766818,0.00019178,2]
[403746057,1769521848395,-1775.766818,0.00019178,2]
[403746058,1769521848407,-1775.766818,0.00019178,2]
[403746059,1769521848419,-1775.766818,0.00019178,2]
[403746060,1769521848432,-1775.766818,0.00019178,2]
[403746062,1769521848443,-1775.766818,0.00019178,2]
[403746063,1769521848456,-1775.766818,0.00019178,2]
[403746064,1769521848468,-1775.766818,0.00019178,2]
[403746065,1769521848481,-1775.766818,0.00019178,2]
[403746066,1769521848494,-1775.766818,0.00019178,2]
[403746068,1769521848506,-1775.766818,0.00019178,2]
[403746069,1769521848520,-1775.766818,0.00019178,2]
[403746070,1769521848532,-151.0,0.00019178,2]
[403746071,1769521848547,-151.0,0.00019178,2]
[403746072,1769521848559,-151.0,0.00019178,2]
[403746074,1769521848569,-347.428255,0.00019178,2]
[403746075,1769521848580,-347.428255,0.00019178,2]
[403746076,1769521848590,-347.428255,0.00019178,2]
[403746077,1769521848602,-151.0,0.00019178,2]
[403746078,1769521848619,-151.0,0.00019178,2]
[403746080,1769521848631,-151.0,0.00019178,2]
[403746081,1769521848643,-151.0,0.00019178,2]
[403746082,1769521848654,-151.0,0.00019178,2]
[403746083,1769521848665,-235.000123,0.00019178,2]
[403746084,1769521848676,-347.428255,0.00019178,2]
[403746086,1769521848693,-347.428255,0.00019178,2]
[403746087,1769521848703,-151.0,0.00019178,2]
[403746088,1769521848713,-347.428255,0.00019178,2]
[403746089,1769521848724,-151.0,0.00019178,2]
[403746090,1769521848737,-151.0,0.00019178,2]
[403746091,1769521848748,-347.428255,0.00019178,2]
[403746093,1769521848760,-347.428255,0.00019178,2]
[403746094,1769521848770,-151.0,0.00019178,2]
[403746095,1769521848782,-347.428255,0.00019178,2]
[403746096,1769521848793,-151.0,0.00019178,2]
[403746097,1769521848804,-289.568746,0.00019178,2]
[403746099,1769521848816,-347.428255,0.00019178,2]
[403746100,1769521848827,-347.428255,0.00019178,2]
[403746101,1769521848838,-347.428255,0.00019178,2]
[403746102,1769521848848,-151.0,0.00019178,2]
[403746103,1769521848859,-164.711152,0.00019178,2]
[403746104,1769521848870,-151.0,0.00019178,2]
[403746106,1769521848881,-151.0,0.00019178,2]
[403746107,1769521848892,-151.0,0.00019178,2]
[403746108,1769521848903,-151.0,0.00019178,2]
[403746109,1769521848916,-151.0,0.00019178,2]
[403746110,1769521848927,-151.0,0.00019178,2]
[403746111,1769521848939,-151.0,0.00019178,2]
[403746113,1769521848949,-151.0,0.00019178,2]
[403746114,1769521848961,-151.0,0.00019178,2]
[403746115,1769521848972,-151.0,0.00019178,2]
[403746116,1769521848983,-151.0,0.00019178,2]
[403746117,1769521848994,-151.0,0.00019178,2]
[403746119,1769521849006,-151.0,0.00019178,2]
[403746120,1769521849016,-151.0,0.00019178,2]
[403746121,1769521849028,-151.0,0.00019178,2]
[403746122,1769521849039,-151.0,0.00019178,2]
[403746123,1769521849051,-151.0,0.00019178,2]
[403746124,1769521849063,-151.0,0.00019178,2]
[403746126,1769521849074,-151.0,0.00019178,2]
[403746127,1769521849086,-151.0,0.00019178,2]
[403746128,1769521849096,-151.0,0.00019178,2]
[403746129,1769521849107,-151.0,0.00019178,2]
[403746130,1769521849119,-222.329974,0.00019178,2]
[403746132,1769521849132,-151.0,0.00019178,2]
[403746133,1769521849143,-151.0,0.00019178,2]
[403746134,1769521849155,-151.0,0.00019178,2]
[403746135,1769521849166,-257.082489,0.00019178,2]
[403746136,1769521849178,-1488.040989,0.00019178,2]
[403746137,1769521849190,-1488.040989,0.00019178,2]
[403746139,1769521849200,-1488.040989,0.00019178,2]
[403746140,1769521849211,-1488.040989,0.00019178,2]
[403746141,1769521849222,-1488.040989,0.00019178,2]
[403746142,1769521849232,-1488.040989,0.00019178,2]
[403746143,1769521849243,-151.0,0.00019178,2]
[403746144,1769521849255,-151.0,0.00019178,2]
[403746146,1769521849266,-151.0,0.00019178,2]
[403746147,1769521849277,-1488.040989,0.00019178,2]
[403746148,1769521849287,-1488.040989,0.00019178,2]
[403746149,1769521849299,-151.0,0.00019178,2]
[403746150,1769521849310,-1488.040989,0.00019178,2]
[403746151,1769521849323,-151.0,0.00019178,2]
[403746153,1769521849335,-151.0,0.00019178,2]
[403746154,1769521849346,-1488.040989,0.00019178,2]
[403746155,1769521849357,-1488.040989,0.00019178,2]
[403746156,1769521849367,-151.0,0.00019178,2]
[403746157,1769521849378,-151.0,0.00019178,2]
[403746158,1769521849388,-1488.040989,0.00019178,2]
[403746159,1769521849398,-154.22929,0.00019178,2]
[403746160,1769521849409,-151.0,0.00019178,2]
[403746161,1769521849419,-154.22929,0.00019178,2]
[403746162,1769521849430,-154.22929,0.00019178,2]
[403746163,1769521849440,-154.22929,0.00019178,2]
[403746164,1769521849451,-154.22929,0.00019178,2]